bitfinex/quotes_BTCUSD_20240623
["timestamp","ask_amount","ask_price","bid_price","bid_amount"]
[1719186081443,0.050492,63409.0,63408.0,0.821542]
[1719186081568,0.050492,63409.0,63408.0,1.136959]
[1719186081758,0.03771144,63409.0,63408.0,1.146959]
[1719186081966,0.04674762,63413.0,63412.0,0.157698]
[1719186082170,0.04674762,63413.0,63412.0,1.53165312]
[1719186082171,0.08506708,63413.0,63412.0,1.53165312]
[1719186082365,0.04676532,63418.0,63417.0,0.02]
[1719186082676,0.03830049,63418.0,63417.0,0.76030323]
[1719186082878,0.03830049,63418.0,63417.0,1.70641923]
[1719186083113,0.54047545,63438.0,63431.0,0.157649]
[1719186083304,0.1169515,63432.0,63431.0,0.157649]
[1719186083493,0.1169515,63433.0,63431.0,0.157649]
[1719186083701,0.54047545,63438.0,63430.0,0.449307]
[1719186083702,0.16777155,63432.0,63430.0,0.291653]
[1719186083903,0.16777155,63432.0,63430.0,0.157653]
[1719186083904,0.03803949,63431.0,63430.0,0.157653]
[1719186084113,0.03803949,63431.0,63430.0,0.180653]
[1719186085352,0.13159304,63431.0,63430.0,0.180653]
[1719186086099,0.03803949,63431.0,63430.0,0.023]
[1719186086307,0.13055062,63431.0,63429.0,0.157656]
[1719186086433,0.10636354,63431.0,63430.0,0.023]
[1719186086625,0.14335879,63431.0,63430.0,0.023]
[1719186087136,0.01280499,63431.0,63430.0,0.1175303]
[1719186087346,0.01280499,63431.0,63425.0,0.134]
[1719186087558,0.04678035,63427.0,63426.0,0.023]
[1719186087763,0.07017053,63428.0,63426.0,0.023]
[1719186088569,0.04678004,63427.0,63426.0,0.180664]
[1719186088807,0.07017053,63428.0,63427.0,0.157661]
[1719186089010,0.07017053,63428.0,63427.0,0.180661]
[1719186089226,0.50415256,63438.0,63428.0,0.157658]
[1719186089442,0.07017258,63429.0,63428.0,0.157658]
[1719186089665,0.07017258,63429.0,63428.0,0.26760284]
[1719186089871,0.64449772,63438.0,63428.0,0.26760284]
[1719186090043,0.0701721,63429.0,63428.0,0.26760284]
[1719186091662,0.64449772,63438.0,63428.0,0.26760284]
[1719186091863,0.06927741,63437.0,63428.0,0.157658]
[1719186092074,0.07017381,63429.0,63428.0,0.157658]
[1719186092250,0.07017355,63429.0,63428.0,0.157658]
[1719186092451,0.50415256,63438.0,63428.0,0.157658]
[1719186092652,0.07017484,63429.0,63428.0,0.157658]
[1719186093056,0.07017484,63429.0,63428.0,0.472976]
[1719186093666,0.50415256,63438.0,63429.0,0.157656]
[1719186093990,0.07017747,63430.0,63429.0,0.157656]
[1719186094192,0.07017709,63430.0,63429.0,0.5674988]
[1719186094406,0.07017709,63430.0,63429.0,1.00345698]
[1719186094603,0.07017709,63431.0,63430.0,0.79827]
[1719186094825,0.07017709,63432.0,63431.0,0.482954]
[1719186095020,0.11696205,63436.0,63432.0,0.315298]
[1719186095255,0.50415256,63438.0,63434.0,0.157643]
[1719186095464,0.1169653,63436.0,63435.0,0.0619892]
[1719186095988,0.1169653,63437.0,63435.0,0.0619892]
[1719186096157,0.1169653,63436.0,63435.0,0.0619892]
[1719186096399,0.1,63447.0,63436.0,0.157639]
[1719186096400,0.09357239,63437.0,63436.0,0.157639]
[1719186096574,0.09357239,63438.0,63437.0,0.157636]
[1719186096790,0.09357239,63439.0,63438.0,0.157634]
[1719186096994,0.09357239,63439.0,63438.0,0.180634]
[1719186097199,0.03455082,63439.0,63438.0,0.82117]
[1719186097659,0.03455082,63439.0,63438.0,0.92714998]
[1719186098056,0.03455082,63439.0,63438.0,1.3949791]
[1719186098295,0.00085,63441.0,63440.0,0.492887]
[1719186098518,0.03532691,63441.0,63440.0,2.1148093]
[1719186098720,0.03532691,63441.0,63440.0,2.3107985]
[1719186099544,0.03532691,63441.0,63440.0,2.23315332]
[1719186100574,0.03532691,63441.0,63440.0,2.22315332]
[1719186101036,0.03532691,63441.0,63440.0,1.5790342]
[1719186101254,0.08218228,63441.0,63440.0,1.5790342]
[1719186101474,0.00085,63441.0,63440.0,1.5790342]
[1719186101677,0.04760405,63441.0,63440.0,1.5790342]
[1719186101886,0.08218103,63441.0,63440.0,1.5790342]
[1719186102087,0.08218103,63441.0,63440.0,1.0071342]
[1719186102526,0.08218103,63441.0,63440.0,1.0171342]
[1719186102527,0.03542698,63441.0,63440.0,1.0171342]
[1719186102925,0.03542698,63441.0,63440.0,1.0071342]
[1719186103144,0.08218103,63441.0,63440.0,1.0071342]
[1719186103342,0.03542698,63441.0,63440.0,1.0071342]
[1719186103889,0.08218103,63441.0,63440.0,0.8731342]
[1719186104091,0.00085,63441.0,63440.0,0.8731342]
[1719186104602,0.08207423,63441.0,63440.0,0.8731342]
[1719186104789,0.03533772,63441.0,63440.0,0.8731342]
[1719186105050,0.08207328,63441.0,63440.0,0.8731342]
[1719186105275,0.08207347,63441.0,63440.0,0.8731342]
[1719186106829,0.03533772,63441.0,63440.0,0.8731342]
[1719186107036,0.08207032,63441.0,63440.0,0.8731342]
[1719186107239,0.03478764,63441.0,63440.0,0.8731342]
[1719186107628,0.08151976,63441.0,63440.0,0.8731342]
[1719186107933,0.08151761,63441.0,63440.0,0.8731342]
[1719186109913,0.03478693,63441.0,63440.0,0.8731342]
[1719186110315,0.03466173,63441.0,63440.0,0.8831342]
[1719186110588,0.03466173,63441.0,63440.0,1.34095332]
[1719186110704,0.00085,63441.0,63440.0,1.35095332]
[1719186111126,0.03466092,63441.0,63440.0,1.51725332]
[1719186111337,0.03466092,63441.0,63440.0,1.52725332]
[1719186112451,0.03466092,63441.0,63440.0,1.51725332]
[1719186112673,0.03466092,63441.0,63440.0,1.52725332]
[1719186112930,0.03466092,63441.0,63440.0,1.51725332]
[1719186113309,0.03441086,63441.0,63440.0,1.51725332]
[1719186114404,0.03441086,63441.0,63440.0,1.52725332]
[1719186115175,0.03441086,63441.0,63440.0,1.34251132]
[1719186115388,0.03441086,63441.0,63440.0,1.50014032]
[1719186116432,0.03416895,63441.0,63440.0,1.50014032]
[1719186116873,0.03416895,63441.0,63440.0,1.70014032]
[1719186117326,0.03416895,63441.0,63440.0,1.50014032]
[1719186118221,0.03416895,63441.0,63440.0,1.70014032]
[1719186118594,0.03416895,63441.0,63440.0,1.50014032]
[1719186118946,0.03416895,63441.0,63440.0,1.70014032]
[1719186119348,0.03381657,63441.0,63440.0,2.01884032]
[1719186119752,0.03381734,63441.0,63440.0,2.01884032]
[1719186120811,0.03381734,63441.0,63440.0,1.81884032]
[1719186121014,0.03295497,63441.0,63440.0,1.97648469]
[1719186121227,0.02795497,63441.0,63440.0,1.95284032]
[1719186121434,0.04669511,63449.0,63448.0,0.157609]
[1719186121704,0.01,63464.0,63449.0,0.157606]
[1719186121909,0.07005198,63451.0,63449.0,0.157606]
[1719186122110,0.07005198,63451.0,63450.0,0.180604]
[1719186122226,0.1367202,63451.0,63450.0,0.180604]
[1719186122431,0.1367202,63451.0,63450.0,0.157604]
[1719186122865,0.1367202,63451.0,63448.0,0.0798068]
[1719186123059,0.06666822,63450.0,63449.0,0.023]
[1719186123261,0.06666822,63450.0,63443.0,0.157621]
[1719186123460,0.04670386,63445.0,63443.0,0.157621]
[1719186123672,0.04670386,63444.0,63443.0,0.157621]
[1719186124281,0.04670386,63444.0,63442.0,0.157624]
[1719186124527,0.00898234,63444.0,63443.0,0.57127652]
[1719186125041,0.00898234,63444.0,63443.0,0.495864]
[1719186125454,0.14593411,63444.0,63443.0,0.495864]
[1719186126387,0.16929892,63444.0,63443.0,0.495864]
[1719186127321,0.16929892,63444.0,63443.0,0.98366812]
[1719186127322,0.00898234,63444.0,63443.0,0.98366812]
[1719186127529,0.14036231,63453.0,63448.0,0.157607]
[1719186127737,0.07536614,63452.0,63449.0,0.180606]
[1719186127980,0.00897786,63452.0,63449.0,0.22856164]
[1719186128227,0.06638854,63451.0,63449.0,0.22856164]
[1719186128357,0.1574,63455.0,63449.0,0.54377464]
[1719186128358,0.06638854,63450.0,63449.0,0.54377464]
[1719186128559,0.0753664,63450.0,63449.0,0.22856164]
[1719186128791,0.0753664,63450.0,63449.0,0.505819]
[1719186129191,0.07557942,63450.0,63449.0,0.505819]
[1719186129595,0.06660156,63450.0,63449.0,0.505819]
[1719186130650,0.14042261,63454.0,63450.0,0.167602]
[1719186130809,0.06727933,63453.0,63450.0,0.167602]
[1719186131007,0.06727933,63452.0,63450.0,0.167602]
[1719186131216,0.14042261,63454.0,63451.0,0.157601]
[1719186131415,0.14042261,63454.0,63451.0,0.167601]
[1719186131416,0.10018799,63453.0,63451.0,0.167601]
[1719186131615,0.14042261,63454.0,63451.0,0.157601]
[1719186131616,0.10018799,63452.0,63451.0,0.157601]
[1719186131835,0.10018799,63452.0,63451.0,0.2541047]
[1719186132417,0.10018799,63452.0,63451.0,0.5693077]
[1719186132636,0.10018799,63452.0,63451.0,0.808007]
[1719186132836,0.10018799,63452.0,63451.0,0.788007]
[1719186133432,0.10018799,63452.0,63451.0,0.472804]
[1719186133577,0.1574,63459.0,63453.0,0.157594]
[1719186133781,0.14046026,63455.0,63453.0,0.157594]
[1719186134134,0.09986463,63454.0,63453.0,0.2530951]
[1719186134758,0.09986463,63454.0,63453.0,0.157594]
[1719186134973,0.09986463,63454.0,63453.0,0.167594]
[1719186135180,0.09986463,63454.0,63453.0,0.639787]
[1719186135392,0.09986463,63454.0,63453.0,0.96498]
[1719186136710,0.15806378,63463.0,63458.0,0.167582]
[1719186136927,0.4601,63466.0,63458.0,0.157582]
[1719186137060,0.00898897,63462.0,63458.0,0.157582]
[1719186137294,0.10093152,63461.0,63458.0,0.157582]
[1719186137468,0.10093152,63460.0,63459.0,0.157582]
[1719186137881,0.10992049,63460.0,63459.0,0.167582]
[1719186138174,0.10992049,63460.0,63459.0,0.157582]
[1719186138512,0.10992049,63460.0,63459.0,0.472746]
[1719186138726,0.10992049,63460.0,63459.0,0.157582]
[1719186139550,0.11021717,63460.0,63459.0,0.157582]
[1719186139929,0.11021717,63460.0,63457.0,0.157586]
[1719186140193,0.1012282,63459.0,63448.0,0.00018972]
[1719186140351,0.14052862,63451.0,63448.0,0.15779872]
[1719186140557,0.24175682,63450.0,63449.0,0.157606]
[1719186140738,0.25075217,63450.0,63449.0,0.157606]
[1719186140933,0.25075217,63450.0,63448.0,0.00018972]
[1719186141135,0.1012282,63449.0,63448.0,0.00018972]
[1719186141380,0.24175682,63449.0,63448.0,0.00018972]
[1719186141616,0.11022355,63449.0,63448.0,0.00018972]
[1719186142564,0.11029011,63449.0,63448.0,0.00018972]
[1719186145544,0.00899535,63449.0,63448.0,0.00018972]
[1719186145823,0.11050485,63449.0,63448.0,0.00018972]
[1719186145984,0.11050503,63449.0,63448.0,0.00018972]
[1719186147318,0.1094087,63449.0,63448.0,0.00018972]
[1719186148583,0.10959532,63449.0,63448.0,0.00018972]
[1719186151292,0.10959532,63449.0,63448.0,0.05684176]
[1719186151459,0.10959532,63449.0,63448.0,0.0856739]
[1719186151702,0.11043311,63449.0,63448.0,0.0856739]
[1719186152121,0.11043311,63449.0,63448.0,0.02318972]
[1719186152344,0.11043311,63449.0,63448.0,0.00018972]
[1719186154790,0.10991903,63449.0,63448.0,0.00018972]
[1719186155217,0.10991902,63449.0,63448.0,0.00018972]
[1719186157780,0.11102448,63449.0,63448.0,0.00018972]
[1719186160839,0.11010741,63449.0,63448.0,0.00018972]
[1719186162224,0.00899871,63449.0,63448.0,0.00018972]
[1719186162526,0.51510688,63451.0,63448.0,0.00018972]
[1719186163146,0.15817831,63450.0,63438.0,0.15075772]
[1719186163466,0.1405897,63444.0,63439.0,0.17555414]
[1719186164266,0.14058927,63444.0,63439.0,0.17555414]
[1719186164578,0.14058927,63444.0,63440.0,0.00315211]
[1719186164882,0.14058927,63444.0,63441.0,0.13294484]
[1719186166865,0.14056906,63444.0,63441.0,0.13294484]
[1719186168092,0.14056094,63444.0,63441.0,0.13294484]
[1719186170236,0.14056094,63444.0,63442.0,0.00315213]
[1719186170438,0.06485395,63443.0,63442.0,0.00315213]
[1719186170640,0.05735447,63443.0,63442.0,0.05572291]
[1719186170847,0.05735447,63443.0,63442.0,0.07872291]
[1719186172552,0.07871843,63443.0,63442.0,0.07872291]
[1719186172755,0.07871843,63443.0,63442.0,0.13222291]
[1719186173158,0.08621791,63443.0,63442.0,0.13222291]
[1719186173482,0.08606524,63443.0,63442.0,0.13222291]
[1719186175699,0.08606524,63443.0,63442.0,0.07872291]
[1719186175895,0.08606524,63443.0,63442.0,0.13222291]
[1719186176095,0.14055993,63444.0,63442.0,0.13222291]
[1719186176299,0.08758985,63443.0,63442.0,0.13222291]
[1719186177083,0.08258985,63443.0,63442.0,0.13222291]
[1719186178956,0.07509384,63443.0,63442.0,0.13222291]
[1719186179158,0.00749601,63443.0,63442.0,0.13222291]
[1719186179357,0.02881959,63443.0,63442.0,0.13222291]
[1719186179559,0.02132358,63443.0,63442.0,0.13222291]
[1719186180688,0.02132358,63443.0,63442.0,0.07872291]
[1719186180915,0.02132358,63443.0,63442.0,0.13222291]
[1719186181509,0.02117606,63443.0,63442.0,0.13222291]
[1719186181721,0.3027,63451.0,63442.0,0.13222291]
[1719186181933,0.14060008,63444.0,63442.0,0.13222291]
[1719186182141,0.14060008,63444.0,63443.0,0.023]
[1719186182318,0.16177618,63444.0,63443.0,0.023]
[1719186182673,0.02867211,63444.0,63443.0,0.023]
[1719186184695,0.02865694,63444.0,63443.0,0.023]
[1719186184897,0.02865694,63444.0,63443.0,0.06707616]
[1719186185242,0.08588691,63444.0,63443.0,0.06707616]
[1719186187473,0.00749601,63444.0,63443.0,0.06707616]
[1719186187673,0.02209113,63444.0,63443.0,0.06707616]
[1719186187869,0.02958714,63444.0,63443.0,0.06707616]
[1719186188071,0.08770475,63444.0,63443.0,0.06707616]
[1719186189336,0.08770475,63444.0,63443.0,1.10854163]
[1719186189571,0.08770475,63444.0,63443.0,1.85334163]
[1719186189572,0.22845813,63444.0,63443.0,1.85334163]
[1719186189777,0.22845813,63444.0,63443.0,2.16858463]
[1719186189778,0.02209113,63444.0,63443.0,2.16858463]
[1719186190150,0.14075338,63447.0,63446.0,0.02]
[1719186190389,0.14075338,63447.0,63446.0,0.40476716]
[1719186190390,0.02207631,63447.0,63446.0,0.40476716]
[1719186190514,0.02207631,63447.0,63446.0,1.19283716]
[1719186190515,0.14073953,63447.0,63446.0,1.19283716]
[1719186190727,0.16281584,63447.0,63446.0,1.19283716]
[1719186190923,0.00085,63460.0,63452.0,0.157598]
[1719186191135,0.08087247,63459.0,63454.0,0.0535]
[1719186191336,0.08087247,63458.0,63454.0,0.0535]
[1719186191522,0.08087247,63457.0,63456.0,0.0535]
[1719186191732,0.08837786,63457.0,63456.0,0.0535]
[1719186191933,0.08837786,63457.0,63456.0,0.0756095]
[1719186193467,0.08881048,63457.0,63456.0,0.0756095]
[1719186193685,0.08881048,63457.0,63456.0,0.0221095]
[1719186193885,0.08881048,63457.0,63456.0,0.0756095]
[1719186195763,0.08881048,63457.0,63456.0,0.0221095]
[1719186196504,0.08793907,63457.0,63456.0,0.0221095]
[1719186196929,0.08793907,63457.0,63453.0,0.211096]
[1719186197137,0.15825608,63454.0,63453.0,0.211096]
[1719186197386,0.23868976,63454.0,63453.0,0.221096]
[1719186197689,0.24619573,63454.0,63453.0,0.546289]
[1719186197802,0.08793965,63454.0,63453.0,1.5171235]
[1719186198018,0.02220491,63454.0,63453.0,1.5171235]
[1719186198260,0.00085,63460.0,63453.0,1.5171235]
[1719186198261,0.14068058,63459.0,63457.0,0.01]
[1719186198468,0.14064855,63459.0,63458.0,0.26201645]
[1719186198729,0.16340386,63459.0,63458.0,0.26201645]
[1719186198955,0.02275531,63459.0,63458.0,0.10443245]
[1719186199631,0.0222789,63459.0,63458.0,0.10443245]
[1719186199968,0.02227922,63459.0,63458.0,0.10443245]
[1719186200321,0.02227922,63459.0,63458.0,0.15793245]
[1719186200540,0.02227922,63459.0,63458.0,1.12141557]
[1719186200829,0.02227922,63459.0,63458.0,0.75274657]
[1719186201070,0.02227922,63459.0,63458.0,0.80624657]
[1719186201261,0.02227922,63459.0,63458.0,0.81624657]
[1719186201416,0.02227922,63459.0,63458.0,0.80624657]
[1719186201796,0.02227922,63459.0,63458.0,0.81624657]
[1719186202552,0.00085,63460.0,63459.0,0.167582]
[1719186202773,0.02298266,63460.0,63459.0,0.70642881]
[1719186203338,0.14005469,63460.0,63459.0,0.70642881]
[1719186203751,0.14005469,63460.0,63459.0,0.76992881]
[1719186203955,0.14005469,63460.0,63459.0,0.71642881]
[1719186204153,0.14005469,63460.0,63459.0,0.75992881]
[1719186205170,0.02298266,63460.0,63459.0,0.75992881]
[1719186205706,0.00085,63460.0,63459.0,0.75992881]
[1719186205908,0.02288815,63460.0,63459.0,0.75992881]
[1719186206289,0.02288815,63460.0,63459.0,2.12685681]
[1719186206290,0.09310292,63460.0,63459.0,2.12685681]
[1719186206499,0.00085,63460.0,63459.0,2.32685681]
[1719186206656,0.00085,63460.0,63459.0,2.42685681]
[1719186207679,0.00085,63460.0,63459.0,2.22685681]
[1719186207903,0.00085,63460.0,63459.0,2.52685681]
[1719186209595,0.00085,63460.0,63459.0,2.84202081]
[1719186214870,0.00085,63460.0,63459.0,2.62202081]
[1719186215627,0.00085,63460.0,63459.0,2.84202081]
[1719186219978,0.00085,63460.0,63459.0,2.87047983]
[1719186220993,0.00849,63472.0,63471.0,1.289164]
[1719186221199,0.00849,63472.0,63471.0,2.07572512]
[1719186223325,0.00849,63472.0,63471.0,2.06572512]
[1719186223528,0.00849,63472.0,63471.0,1.50822512]
[1719186224142,0.00849,63472.0,63471.0,1.51822512]
[1719186224343,0.00849,63472.0,63471.0,1.56246662]
[1719186224547,0.00849,63472.0,63471.0,1.55246662]
[1719186224750,0.00849,63472.0,63471.0,1.56246662]
[1719186225758,0.00849,63472.0,63471.0,1.49896662]
[1719186226010,0.00849,63472.0,63471.0,1.55246662]
[1719186226960,0.00849,63472.0,63471.0,1.56246662]
[1719186227363,0.00849,63472.0,63471.0,1.55231713]
[1719186227666,0.00849,63472.0,63471.0,1.56231713]
[1719186227862,0.00849,63472.0,63471.0,1.55231713]
[1719186229174,0.00849,63472.0,63471.0,1.22736262]
[1719186229374,0.00849,63472.0,63471.0,1.23721313]
[1719186231159,0.00849,63472.0,63471.0,0.92210913]
[1719186231740,0.00849,63472.0,63471.0,2.10281713]
[1719186231892,0.00849,63472.0,63471.0,2.11281713]
[1719186233348,0.00828906,63472.0,63471.0,2.11281713]
[1719186234980,0.00828906,63472.0,63471.0,2.04931713]
[1719186235299,0.00828906,63472.0,63471.0,1.55231713]
[1719186235504,0.03079254,63472.0,63471.0,0.74595862]
[1719186235728,0.03079254,63472.0,63471.0,0.69245862]
[1719186235931,0.03079254,63472.0,63471.0,0.74595862]
[1719186236352,0.00828906,63472.0,63471.0,0.74595862]
[1719186236552,0.03019597,63472.0,63471.0,0.74595862]
[1719186236757,0.00828906,63472.0,63471.0,0.27330262]
[1719186236959,0.03019825,63472.0,63471.0,0.43085462]
[1719186237117,0.03019825,63472.0,63471.0,0.0977415]
[1719186237332,0.03019825,63472.0,63471.0,0.0535]
[1719186237507,0.03019825,63472.0,63471.0,0.054435]
[1719186237899,0.03042239,63472.0,63471.0,0.054435]
[1719186238618,0.03042239,63472.0,63471.0,0.000935]
[1719186238776,0.03042239,63472.0,63471.0,0.054435]
[1719186238972,0.03042239,63472.0,63471.0,0.17993933]
[1719186239519,0.00828906,63472.0,63471.0,0.17993933]
[1719186239724,0.03049152,63472.0,63471.0,0.17993933]
[1719186241980,0.03064375,63472.0,63471.0,0.12643933]
[1719186242184,0.03049426,63472.0,63471.0,0.054435]
[1719186243975,0.03049426,63472.0,63471.0,0.06428551]
[1719186244182,0.07725929,63472.0,63471.0,0.06428551]
[1719186244979,0.07698491,63472.0,63471.0,0.22183751]
[1719186245124,0.07698491,63472.0,63471.0,0.32031716]
[1719186245308,0.07703219,63472.0,63471.0,0.32031716]
[1719186245728,0.07703219,63472.0,63471.0,0.26681716]
[1719186245927,0.07703219,63472.0,63471.0,0.32031716]
[1719186246331,0.10044314,63472.0,63471.0,0.32031716]
[1719186246550,0.10032227,63472.0,63471.0,0.32031716]
[1719186247097,0.10032227,63472.0,63471.0,0.09941465]
[1719186247304,0.12388272,63472.0,63471.0,0.15291465]
[1719186247515,0.12388272,63472.0,63471.0,0.054435]
[1719186247919,0.03009744,63472.0,63471.0,0.054435]
[1719186248287,0.14720473,63472.0,63471.0,0.054435]
[1719186248601,0.14720473,63472.0,63471.0,0.000935]
[1719186248785,0.14705524,63472.0,63471.0,0.1117967]
[1719186249029,0.02994795,63472.0,63471.0,0.0582967]
[1719186249202,0.14705524,63472.0,63471.0,0.1117967]
[1719186250203,0.02994795,63472.0,63471.0,0.1117967]
[1719186251074,0.00828906,63472.0,63471.0,0.1117967]
[1719186251337,0.03020497,63472.0,63471.0,0.1117967]
[1719186253866,0.00828906,63472.0,63471.0,0.1117967]
[1719186254685,0.00828906,63472.0,63471.0,0.000935]
[1719186254686,0.00843855,63472.0,63471.0,0.000935]
[1719186254887,0.03032933,63472.0,63471.0,0.054435]
[1719186255501,0.36533855,63472.0,63471.0,0.000935]
[1719186255716,0.38685777,63472.0,63471.0,0.0167844]
[1719186257089,0.52695051,63472.0,63471.0,0.000935]
[1719186257343,0.46356893,63472.0,63471.0,0.000935]
[1719186257541,1.24302205,63472.0,63471.0,0.000935]
[1719186260047,1.24411228,63472.0,63471.0,0.000935]
[1719186261550,1.44411228,63472.0,63471.0,0.000935]
[1719186262099,0.97072028,63472.0,63471.0,0.000935]
[1719186262301,1.06560028,63472.0,63471.0,0.000935]
[1719186262592,4.54553842,63472.0,63471.0,0.000935]
[1719186263085,4.39298428,63472.0,63471.0,0.000935]
[1719186263585,4.33870059,63472.0,63471.0,0.000935]
[1719186263748,4.39220059,63472.0,63471.0,0.000935]
[1719186264580,4.31347405,63472.0,63471.0,0.000935]
[1719186264772,4.39226169,63472.0,63471.0,0.000935]
[1719186264973,4.54481583,63472.0,63471.0,0.000935]
[1719186265213,4.39226169,63472.0,63471.0,0.000935]
[1719186265541,4.4146665,63472.0,63471.0,0.000935]
[1719186266085,4.41466068,63472.0,63471.0,0.000935]
[1719186267526,4.36116068,63472.0,63471.0,0.000935]
[1719186267726,4.45101246,63472.0,63471.0,0.000935]
[1719186270366,4.39751246,63472.0,63471.0,0.000935]
[1719186270582,4.45101246,63472.0,63471.0,0.000935]
[1719186270948,4.47969394,63472.0,63471.0,0.000935]
[1719186272171,4.473807,63472.0,63471.0,0.000935]
[1719186272578,4.47390174,63472.0,63471.0,0.000935]
[1719186273382,4.63158404,63472.0,63471.0,0.000935]
[1719186273754,4.63156942,63472.0,63471.0,0.000935]
[1719186274608,4.30303616,63472.0,63471.0,0.000935]
[1719186274787,3.37337686,63472.0,63471.0,0.000935]
[1719186275208,3.37330451,63472.0,63471.0,0.000935]
[1719186278166,3.30040186,63472.0,63471.0,0.000935]
[1719186278367,3.37266249,63472.0,63471.0,0.000935]
[1719186279301,3.43580449,63472.0,63471.0,0.000935]
[1719186281291,3.43674209,63472.0,63471.0,0.000935]
[1719186281649,3.4366589,63472.0,63471.0,0.000935]
[1719186284240,3.36354386,63472.0,63471.0,0.000935]
[1719186284457,3.43652419,63472.0,63471.0,0.000935]
[1719186284833,3.43629021,63472.0,63471.0,0.000935]
[1719186286423,3.53277769,63472.0,63471.0,0.000935]
[1719186287342,3.73277769,63472.0,63471.0,0.000935]
[1719186287537,3.47927769,63472.0,63471.0,0.000935]
[1719186287751,0.36302957,63472.0,63471.0,0.000935]
[1719186287925,0.41774451,63472.0,63471.0,0.244435]
[1719186288095,0.18099528,63472.0,63471.0,0.244435]
[1719186288540,0.18104551,63472.0,63471.0,0.244435]
[1719186290498,0.07307764,63472.0,63471.0,0.244435]
[1719186290873,0.07302351,63472.0,63471.0,0.244435]
[1719186292329,0.21333138,63472.0,63471.0,0.244435]
[1719186292544,0.31333138,63472.0,63471.0,0.244435]
[1719186292749,0.32733138,63472.0,63471.0,0.245435]
[1719186293584,0.32741681,63472.0,63471.0,0.245435]
[1719186294033,0.34141681,63472.0,63471.0,0.246435]
[1719186294573,0.20105271,63472.0,63471.0,0.246435]
[1719186296444,0.128,63472.0,63471.0,0.246435]
[1719186296640,0.1012469,63472.0,63471.0,0.246435]
[1719186296934,0.1012469,63472.0,63471.0,0.3293985]
[1719186296935,0.2012469,63472.0,63471.0,0.3293985]
[1719186297148,0.1012469,63472.0,63471.0,0.6933985]
[1719186297560,0.10143202,63472.0,63471.0,0.6198985]
[1719186298176,0.10143202,63472.0,63471.0,0.556935]
[1719186298435,0.10143202,63472.0,63471.0,0.555935]
[1719186298436,0.08743202,63472.0,63471.0,0.555935]
[1719186298637,0.07343202,63472.0,63471.0,0.554935]
[1719186298798,0.09443202,63472.0,63471.0,0.556935]
[1719186299171,0.23485773,63472.0,63471.0,0.556935]
[1719186299407,0.021,63472.0,63471.0,0.556935]
[1719186299637,0.18022001,63472.0,63471.0,0.556935]
[1719186299845,0.14844488,63472.0,63471.0,0.555935]
[1719186300049,0.22277162,63472.0,63471.0,0.575935]
[1719186300314,0.09232674,63472.0,63471.0,0.8509305]
[1719186300537,0.03707558,63472.0,63471.0,0.6933785]
[1719186301178,0.03707558,63472.0,63471.0,0.6398785]
[1719186301445,0.03707558,63472.0,63471.0,0.6933785]
[1719186301676,0.018,63472.0,63471.0,0.6733785]
[1719186301898,0.03731475,63472.0,63471.0,0.6733785]
[1719186302114,0.03731475,63472.0,63471.0,0.6933785]
[1719186303194,0.03731475,63472.0,63471.0,0.6733785]
[1719186303829,0.03731475,63472.0,63471.0,0.246435]
[1719186303951,0.23356978,63472.0,63471.0,0.246435]
[1719186304199,0.23356978,63472.0,63471.0,0.002935]
[1719186304405,0.82909404,63472.0,63471.0,0.002935]
[1719186304668,0.23723964,63472.0,63471.0,0.002935]
[1719186304891,0.30564064,63472.0,63471.0,0.002935]
[1719186305088,0.22169064,63472.0,63471.0,0.002935]
[1719186305330,0.09336964,63472.0,63471.0,0.012935]
[1719186305529,0.09336964,63472.0,63471.0,0.002935]
[1719186305736,0.09336964,63472.0,63471.0,0.022935]
[1719186305987,0.23384584,63472.0,63471.0,0.7137585]
[1719186306125,0.03761114,63472.0,63471.0,0.7137585]
[1719186306566,0.03761114,63472.0,63471.0,0.8713105]
[1719186306788,0.13126142,63472.0,63471.0,1.1864145]
[1719186306991,0.03761114,63472.0,63471.0,1.1864145]
[1719186307203,0.08443885,63472.0,63471.0,1.1864145]
[1719186307410,0.018,63472.0,63471.0,1.5115185]
[1719186307646,0.03961705,63472.0,63471.0,1.5015185]
[1719186308078,0.0394442,63472.0,63471.0,1.5005185]
[1719186308290,0.07625629,63472.0,63471.0,1.5005185]
[1719186308513,0.0264442,63472.0,63471.0,1.4995185]
[1719186308945,0.0244442,63472.0,63471.0,1.4995185]
[1719186309368,0.0234442,63472.0,63471.0,1.4995185]
[1719186309678,0.0234442,63472.0,63471.0,1.1309145]
[1719186309856,0.0234442,63472.0,63471.0,0.573335]
[1719186310263,0.0234442,63472.0,63471.0,0.593335]
[1719186310395,0.0234442,63472.0,63471.0,0.020935]
[1719186310396,0.002,63472.0,63471.0,0.020935]
[1719186311019,0.02381729,63472.0,63471.0,0.020935]
[1719186311247,0.36955454,63472.0,63471.0,0.000935]
[1719186311455,0.48911654,63472.0,63471.0,0.000935]
[1719186311763,1.06307766,63472.0,63471.0,0.001935]
[1719186311996,1.27097821,63472.0,63471.0,0.001935]
[1719186312309,1.11307766,63472.0,63471.0,0.001935]
[1719186312504,1.12407766,63472.0,63471.0,0.002935]
[1719186312926,1.11307766,63472.0,63471.0,0.001935]
[1719186313165,1.12507766,63472.0,63471.0,0.002935]
[1719186313341,1.09465412,63472.0,63471.0,0.002935]
[1719186314068,1.08365412,63472.0,63471.0,0.001935]
[1719186314482,1.04415412,63472.0,63471.0,0.001935]
[1719186316244,0.534693,63472.0,63471.0,0.001935]
[1719186316446,0.534693,63472.0,63471.0,0.252035]
[1719186316447,0.69259425,63472.0,63471.0,0.252035]
[1719186316762,0.42211,63472.0,63471.0,0.252035]
[1719186316959,0.30871,63472.0,63471.0,0.001935]
[1719186317162,0.126,63472.0,63471.0,0.001935]
[1719186317366,0.16638183,63472.0,63471.0,0.075435]
[1719186317624,0.026,63472.0,63471.0,0.075435]
[1719186318261,0.026,63472.0,63471.0,0.1543849]
[1719186318375,0.026,63472.0,63471.0,0.808887]
[1719186318573,0.14300273,63472.0,63471.0,1.070491]
[1719186318994,0.11960692,63472.0,63471.0,1.070491]
[1719186319399,0.014,63472.0,63471.0,1.53714914]
[1719186319604,0.107604,63472.0,63471.0,1.22204514]
[1719186319805,0.111604,63472.0,63471.0,1.22204514]
[1719186320211,0.093604,63472.0,63471.0,1.22204514]
[1719186320415,0.003,63472.0,63471.0,1.22204514]
[1719186320623,0.005,63472.0,63471.0,1.22204514]
[1719186320999,0.093604,63473.0,63472.0,0.157549]
[1719186321235,0.093604,63473.0,63472.0,0.26749384]
[1719186321435,0.093604,63473.0,63472.0,0.28749384]
[1719186321803,0.117005,63475.0,63474.0,0.02]